fUSD/lending_fUSD_20260515
["ID","MTS","AMOUNT","RATE_DAILY","PERIOD"]
[422298842,1778799043000,-659.64,0.000262,2]
[422298855,1778799043000,-957.32,0.00026229,7]
[422298858,1778799043000,-1638.67,0.00026229,7]
[422298839,1778799043000,-1877.71,0.00026171,7]
[422298862,1778799043000,-1654.96,0.00026257,2]
[422298851,1778799043000,-950.85,0.00026229,7]
[422298854,1778799043000,-657.52,0.00026229,7]
[422298853,1778799043000,-1654.96,0.00026229,7]
[422298856,1778799043000,-1877.71,0.00026229,7]
[422298863,1778799043000,-657.52,0.00026257,30]
[422298861,1778799043000,-1886.64,0.00026257,2]
[422298865,1778799043000,-1877.71,0.00026257,2]
[422298872,1778799043000,-957.32,0.00026286,2]
[422298867,1778799043000,-659.64,0.00026286,2]
[422298864,1778799043000,-957.32,0.00026257,2]
[422298868,1778799043000,-950.85,0.00026286,2]
[422298843,1778799043000,-950.85,0.000262,2]
[422298850,1778799043000,-659.64,0.00026229,7]
[422298835,1778799043000,-1886.64,0.00026171,7]
[422298831,1778799043000,-1638.67,0.00026142,7]
[422298846,1778799043000,-657.52,0.000262,2]
[422298871,1778799043000,-657.52,0.00026286,2]
[422298814,1778799043000,-1638.67,0.00026084,2]
[422298815,1778799043000,-659.64,0.00026113,2]
[422298817,1778799043000,-1886.64,0.00026113,2]
[422298816,1778799043000,-950.85,0.00026113,2]
[422298818,1778799043000,-1654.96,0.00026113,2]
[422298819,1778799043000,-657.52,0.00026113,2]
[422298821,1778799043000,-1877.71,0.00026113,2]
[422298823,1778799043000,-659.64,0.00026142,7]
[422298829,1778799043000,-957.32,0.00026142,7]
[422298832,1778799043000,-208.3309892,0.00026171,7]
[422298844,1778799043000,-1886.64,0.000262,2]
[422298820,1778799043000,-957.32,0.00026113,2]
[422298833,1778799043000,-659.64,0.00026171,30]
[422298828,1778799043000,-657.52,0.00026142,7]
[422298826,1778799043000,-1654.96,0.00026142,7]
[422298824,1778799043000,-950.85,0.00026142,7]
[422298830,1778799043000,-1877.71,0.00026142,7]
[422298825,1778799043000,-1886.64,0.00026142,7]
[422298834,1778799043000,-950.85,0.00026171,7]
[422298836,1778799043000,-1654.96,0.00026171,7]
[422298838,1778799043000,-957.32,0.00026171,7]
[422298841,1778799043000,-308.543742,0.00026178,14]
[422298845,1778799043000,-1654.96,0.000262,2]
[422298822,1778799043000,-1638.67,0.00026113,2]
[422298866,1778799043000,-1638.67,0.00026257,2]
[422298840,1778799043000,-1638.67,0.00026171,7]
[422298869,1778799043000,-1886.64,0.00026286,2]
[422298912,1778799043000,-950.85,0.00026402,7]
[422298907,1778799043000,-1638.67,0.00026373,2]
[422298916,1778799043000,-957.32,0.00026402,7]
[422298914,1778799043000,-1654.96,0.00026402,7]
[422298913,1778799043000,-1886.64,0.00026402,7]
[422298906,1778799043000,-1877.71,0.00026373,2]
[422298910,1778799043000,-970.69,0.000264,7]
[422298911,1778799043000,-659.64,0.00026402,7]
[422298915,1778799043000,-657.52,0.00026402,7]
[422298918,1778799043000,-1638.67,0.00026402,7]
[422298928,1778799043000,-950.85,0.00026459,2]
[422298917,1778799043000,-1877.71,0.00026402,7]
[422298924,1778799043000,-957.32,0.00026431,2]
[422298919,1778799043000,-659.64,0.00026431,30]
[422298920,1778799043000,-950.85,0.00026431,2]
[422298929,1778799043000,-1886.64,0.00026459,2]
[422298930,1778799043000,-1654.96,0.00026459,2]
[422298925,1778799043000,-1877.71,0.00026431,2]
[422298922,1778799043000,-1654.96,0.00026431,2]
[422298921,1778799043000,-1886.64,0.00026431,2]
[422298926,1778799043000,-1638.67,0.00026431,2]
[422298923,1778799043000,-657.52,0.00026431,30]
[422298927,1778799043000,-659.64,0.00026459,2]
[422298932,1778799043000,-957.32,0.00026459,2]
[422298870,1778799043000,-1654.96,0.00026286,2]
[422298933,1778799043000,-1877.71,0.00026459,2]
[422298909,1778799043000,-200.0,0.0002639,7]
[422298931,1778799043000,-657.52,0.00026459,2]
[422298905,1778799043000,-957.32,0.00026373,2]
[422298908,1778799043000,-200.0,0.0002639,7]
[422298886,1778799043000,-657.52,0.00026315,7]
[422298882,1778799043000,-1886.64,0.00026315,7]
[422298876,1778799043000,-6445.64661898,0.000263,2]
[422298873,1778799043000,-1877.71,0.00026286,2]
[422298884,1778799043000,-1654.96,0.00026315,7]
[422298874,1778799043000,-1638.67,0.00026286,2]
[422298880,1778799043000,-950.85,0.00026315,7]
[422298878,1778799043000,-659.64,0.00026315,7]
[422298888,1778799043000,-957.32,0.00026315,7]
[422298889,1778799043000,-1877.71,0.00026315,7]
[422298891,1778799043000,-1638.67,0.00026315,7]
[422298875,1778799043000,-2458.5,0.00026296,2]
[422298893,1778799043000,-950.85,0.00026344,7]
[422298892,1778799043000,-659.64,0.00026344,30]
[422298897,1778799043000,-957.32,0.00026344,7]
[422298896,1778799043000,-657.52,0.00026344,30]
[422298894,1778799043000,-1886.64,0.00026344,7]
[422298901,1778799043000,-950.85,0.00026373,2]
[422298902,1778799043000,-1886.64,0.00026373,2]
[422298903,1778799043000,-1654.96,0.00026373,2]
[422298904,1778799043000,-657.52,0.00026373,2]
[422298899,1778799043000,-1638.67,0.00026344,7]
[422298900,1778799043000,-659.64,0.00026373,2]
[422298898,1778799043000,-1877.71,0.00026344,7]
[422298895,1778799043000,-1654.96,0.00026344,7]
[422298970,1778799044000,-188.85,0.00026618,2]
[422298981,1778799044000,-300.0,0.00026693,2]
[422298980,1778799044000,-300.0,0.00026693,2]
[422298968,1778799044000,-202.01375838,0.0002659,20]
[422298962,1778799044000,-1886.72,0.00026575,7]
[422298964,1778799044000,-657.52,0.00026575,7]
[422298966,1778799044000,-1877.81,0.00026575,7]
[422298961,1778799044000,-950.93,0.00026575,7]
[422298963,1778799044000,-1655.01,0.00026575,7]
[422298959,1778799044000,-1638.67,0.00026546,2]
[422298977,1778799044000,-300.0,0.00026693,2]
[422298975,1778799044000,-300.0,0.00026693,2]
[422298976,1778799044000,-300.0,0.00026693,2]
[422298969,1778799044000,-208.3309892,0.000266,30]
[422298979,1778799044000,-300.0,0.00026693,2]
[422298982,1778799044000,-300.0,0.00026693,2]
[422298978,1778799044000,-300.0,0.00026693,2]
[422298974,1778799044000,-158.0,0.00026684,3]
[422298972,1778799044000,-623.0,0.00026644,4]
[422298984,1778799044000,-182.0,0.00026693,2]
[422298986,1778799044000,-625.0,0.00026765,2]
[422298988,1778799044000,-3542.0,0.00026765,2]
[422298967,1778799044000,-1638.85,0.00026575,7]
[422298987,1778799044000,-926.0,0.00026765,2]
[422298983,1778799044000,-300.0,0.00026693,2]
[422298965,1778799044000,-957.36,0.00026575,7]
[422298946,1778799044000,-1886.64,0.00026517,7]
[422298958,1778799044000,-1877.71,0.00026546,2]
[422298985,1778799044000,-1354.0,0.00026765,2]
[422298934,1778799044000,-1638.67,0.00026459,2]
[422298938,1778799044000,-1654.96,0.00026488,7]
[422298936,1778799044000,-950.85,0.00026488,7]
[422298935,1778799044000,-659.64,0.00026488,7]
[422298939,1778799044000,-657.52,0.00026488,7]
[422298940,1778799044000,-957.32,0.00026488,7]
[422298937,1778799044000,-1886.64,0.00026488,7]
[422298943,1778799044000,-6445.64661898,0.000265,2]
[422298941,1778799044000,-1877.71,0.00026488,7]
[422298944,1778799044000,-659.64,0.00026517,30]
[422298960,1778799044000,-659.83,0.00026575,7]
[422298942,1778799044000,-1638.67,0.00026488,7]
[422298947,1778799044000,-1654.96,0.00026517,7]
[422298957,1778799044000,-957.32,0.00026546,2]
[422298955,1778799044000,-1654.96,0.00026546,2]
[422298951,1778799044000,-1638.67,0.00026517,7]
[422298948,1778799044000,-657.52,0.00026517,30]
[422298953,1778799044000,-950.85,0.00026546,2]
[422298949,1778799044000,-957.32,0.00026517,7]
[422298952,1778799044000,-659.64,0.00026546,2]
[422298950,1778799044000,-1877.71,0.00026517,7]
[422298954,1778799044000,-1886.64,0.00026546,2]
[422298956,1778799044000,-657.52,0.00026546,2]
[422298945,1778799044000,-950.85,0.00026517,7]
[422298989,1778799044000,-1270.0,0.00026765,2]
[422298992,1778799044000,-3630.0,0.00026765,2]
[422298995,1778799044000,-6445.64661898,0.000268,2]
[422299021,1778799044000,-1009.93,0.00027397,2]
[422299020,1778799044000,-2000.0,0.00027397,7]
[422299022,1778799044000,-151.16892255,0.00027397,2]
[422299024,1778799044000,-749.99,0.00027397,2]
[422299028,1778799044000,-1464.95,0.00027397,2]
[422299027,1778799044000,-606.92,0.00027397,20]
[422299023,1778799044000,-526.4,0.00027397,2]
[422299025,1778799044000,-300.0,0.00027397,2]
[422299026,1778799044000,-1017.61,0.00027397,2]
[422299029,1778799044000,-6032.72,0.00027397,10]
[422299030,1778799044000,-500.0,0.00027398,2]
[422299018,1778799044000,-186.4,0.00027397,7]
[422299032,1778799044000,-2209.03,0.000274,7]
[422299039,1778799044000,-500.0,0.00027581,14]
[422299040,1778799044000,-500.0,0.00027581,14]
[422299034,1778799044000,-2810.45,0.000274,7]
[422299035,1778799044000,-331.36727207,0.000274,30]
[422299033,1778799044000,-6618.0,0.000274,7]
[422299036,1778799044000,-271.45098806,0.000274,30]
[422299037,1778799044000,-519.29,0.00027497,7]
[422299042,1778799044000,-623.0,0.00027767,5]
[422299041,1778799044000,-150.0,0.0002761,2]
[422299044,1778799044000,-214.95940296,0.000278,7]
[422299043,1778799044000,-500.0,0.000278,7]
[422299038,1778799044000,-255.99828244,0.00027541,2]
[422299019,1778799044000,-1500.0,0.00027397,2]
[422299031,1778799044000,-1817.69,0.000274,14]
[422299016,1778799044000,-2146.46978842,0.00027397,2]
[422299015,1778799044000,-2000.0,0.00027387,7]
[422298994,1778799044000,-500.0,0.00026777,2]
[422298990,1778799044000,-150.0,0.00026765,2]
[422298993,1778799044000,-500.0,0.00026777,2]
[422298997,1778799044000,-1054.92832046,0.00026849,5]
[422299003,1778799044000,-6618.0,0.000271,7]
[422299005,1778799044000,-278.28268443,0.00027126,14]
[422298998,1778799044000,-1040.62100611,0.00026849,5]
[422299004,1778799044000,-159.41342413,0.00027123,20]
[422299007,1778799044000,-623.0,0.00027205,4]
[422299006,1778799044000,-2676.97734028,0.00027196,2]
[422298996,1778799044000,-1008.29643829,0.00026849,5]
[422298991,1778799044000,-930.0,0.00026765,2]
[422298999,1778799044000,-1512.69789236,0.00026849,5]
[422299001,1778799044000,-214.95940296,0.00027,7]
[422299010,1778799044000,-1916.83374946,0.00027337,7]
[422299013,1778799044000,-2000.0,0.00027367,7]
[422299012,1778799044000,-2000.0,0.00027357,7]
[422299011,1778799044000,-2000.0,0.00027347,7]
[422299014,1778799044000,-2000.0,0.00027377,7]
[422299017,1778799044000,-1669.47395212,0.00027397,30]
[422299009,1778799044000,-6445.64661898,0.000273,2]
[422299000,1778799044000,-150.0,0.00026849,2]
[422299002,1778799044000,-6445.64661898,0.000271,2]
[422299008,1778799044000,-5024.36972956,0.0002722,2]
[422299083,1778799045000,-623.0,0.0002889,6]
[422299082,1778799045000,-478.76,0.00028869,2]
[422299089,1778799045000,-600.0,0.00029224,30]
[422299073,1778799045000,-623.0,0.00028329,6]
[422299081,1778799045000,-500.0,0.00028768,2]
[422299077,1778799045000,-156.58,0.00028493,2]
[422299069,1778799045000,-771.0,0.00028125,10]
[422299079,1778799045000,-180.24546421,0.00028593,2]
[422299075,1778799045000,-500.0,0.00028408,16]
[422299088,1778799045000,-600.0,0.00029224,30]
[422299074,1778799045000,-165.78,0.00028373,7]
[422299080,1778799045000,-478.76,0.00028595,2]
[422299102,1778799045000,-623.0,0.00029452,7]
[422299090,1778799045000,-600.0,0.00029224,30]
[422299084,1778799045000,-150.61,0.00029143,2]
[422299086,1778799045000,-158.0,0.0002921,3]
[422299085,1778799045000,-2810.45,0.000292,7]
[422299092,1778799045000,-600.0,0.00029224,30]
[422299091,1778799045000,-600.0,0.00029224,30]
[422299094,1778799045000,-500.0,0.0002926,18]
[422299097,1778799045000,-1001.9,0.00029329,2]
[422299096,1778799045000,-152.0,0.00029307,3]
[422299095,1778799045000,-1001.9,0.000293,2]
[422299071,1778799045000,-2458.5,0.00028267,2]
[422299087,1778799045000,-1669.47395212,0.00029224,30]
[422299076,1778799045000,-469.39618369,0.0002847,2]
[422299050,1778799045000,-300.0,0.000278,7]
[422299072,1778799045000,-1669.47395212,0.00028311,30]
[422299098,1778799045000,-1001.9,0.00029357,2]
[422299051,1778799045000,-300.0,0.000278,7]
[422299053,1778799045000,-350.0,0.000278,7]
[422299045,1778799045000,-300.0,0.000278,7]
[422299048,1778799045000,-300.0,0.000278,7]
[422299046,1778799045000,-300.0,0.000278,7]
[422299052,1778799045000,-300.0,0.000278,7]
[422299047,1778799045000,-300.0,0.000278,7]
[422299049,1778799045000,-300.0,0.000278,7]
[422299063,1778799045000,-2000.0,0.000278,7]
[422299058,1778799045000,-2000.0,0.000278,7]
[422299056,1778799045000,-2000.0,0.000278,7]
[422299064,1778799045000,-208.3309892,0.00028,3]
[422299065,1778799045000,-600.0,0.00028,2]
[422299054,1778799045000,-2000.0,0.000278,7]
[422299059,1778799045000,-2000.0,0.000278,7]
[422299055,1778799045000,-2000.0,0.000278,7]
[422299066,1778799045000,-214.95940296,0.00028,7]
[422299057,1778799045000,-2000.0,0.000278,7]
[422299061,1778799045000,-2000.0,0.000278,7]
[422299062,1778799045000,-2000.0,0.000278,7]
[422299060,1778799045000,-2000.0,0.000278,7]
[422299068,1778799045000,-768.0,0.00028125,10]
[422299078,1778799045000,-970.69,0.000285,7]
[422299067,1778799045000,-2167.0,0.00028125,10]
[422299070,1778799045000,-150.0,0.00028192,2]
[422299093,1778799045000,-477.0,0.00029224,30]
[422299100,1778799045000,-1001.9,0.00029414,2]
[422299149,1778799045000,-239.0,0.00030567,30]
[422299140,1778799045000,-2209.03,0.000305,7]
[422299132,1778799045000,-211.0,0.00030137,120]
[422299141,1778799045000,-233.88474656,0.00030557,80]
[422299142,1778799045000,-286.0,0.00030559,30]
[422299131,1778799045000,-198.0,0.000301,120]
[422299133,1778799045000,-749.99,0.00030137,2]
[422299137,1778799045000,-500.0,0.00030138,19]
[422299134,1778799045000,-200.0,0.00030137,2]
[422299136,1778799045000,-2746.66395212,0.00030137,30]
[422299135,1778799045000,-189.28003305,0.00030137,40]
[422299138,1778799045000,-2458.5,0.00030239,2]
[422299139,1778799045000,-1817.69,0.000305,14]
[422299144,1778799045000,-476.0,0.00030559,30]
[422299143,1778799045000,-906.0,0.00030559,30]
[422299154,1778799045000,-188.55918147,0.00030572,80]
[422299145,1778799045000,-301.0,0.00030559,30]
[422299146,1778799045000,-428.0,0.00030559,30]
[422299152,1778799045000,-4071.0,0.00030567,30]
[422299147,1778799045000,-1953.0,0.00030559,30]
[422299151,1778799045000,-3121.0,0.00030567,30]
[422299153,1778799045000,-396.0,0.00030567,30]
[422299150,1778799045000,-469.0,0.00030567,30]
[422299148,1778799045000,-631.0,0.00030567,30]
[422299156,1778799045000,-219.86705452,0.0003065,2]
[422299155,1778799045000,-623.0,0.00030575,8]
[422299126,1778799045000,-520.0,0.0003,120]
[422299128,1778799045000,-623.0,0.00030014,7]
[422299101,1778799045000,-1001.9,0.00029443,2]
[422299127,1778799045000,-255.99828244,0.00030004,2]
[422299130,1778799045000,-2089.0,0.000301,120]
[422299099,1778799045000,-1001.9,0.00029386,2]
[422299106,1778799045000,-150.0,0.00029601,2]
[422299105,1778799045000,-1106.10975102,0.00029574,3]
[422299104,1778799045000,-1001.9,0.000295,2]
[422299113,1778799045000,-930.0,0.00029765,2]
[422299112,1778799045000,-150.0,0.00029765,2]
[422299107,1778799045000,-1354.0,0.00029765,2]
[422299110,1778799045000,-3542.0,0.00029765,2]
[422299114,1778799045000,-3630.0,0.00029765,2]
[422299115,1778799045000,-150.0,0.00029819,2]
[422299111,1778799045000,-1270.0,0.00029765,2]
[422299103,1778799045000,-1001.9,0.00029471,2]
[422299108,1778799045000,-625.0,0.00029765,2]
[422299109,1778799045000,-926.0,0.00029765,2]
[422299129,1778799045000,-313.61,0.00030082,120]
[422299123,1778799045000,-270.0,0.0003,30]
[422299121,1778799045000,-150.0,0.0003,30]
[422299124,1778799045000,-519.0,0.0003,120]
[422299125,1778799045000,-200.0,0.0003,2]
[422299119,1778799045000,-366.82991459,0.0003,30]
[422299120,1778799045000,-150.0,0.0003,30]
[422299118,1778799045000,-650.0,0.0003,2]
[422299116,1778799045000,-366.82991459,0.0003,30]
[422299117,1778799045000,-150.0,0.0003,2]
[422299122,1778799045000,-150.0,0.0003,30]
[422299181,1778799046000,-169.67294753,0.0003126,88]
[422299198,1778799046000,-239.0,0.00031567,30]
[422299182,1778799046000,-307.92,0.00031343,30]
[422299183,1778799046000,-3000.0,0.00031343,30]
[422299186,1778799046000,-3000.0,0.00031343,30]
[422299184,1778799046000,-3000.0,0.00031343,30]
[422299199,1778799046000,-469.0,0.00031567,30]
[422299190,1778799046000,-286.0,0.00031559,30]
[422299192,1778799046000,-476.0,0.00031559,30]
[422299187,1778799046000,-2676.97734028,0.00031421,2]
[422299196,1778799046000,-1953.0,0.00031559,30]
[422299191,1778799046000,-906.0,0.00031559,30]
[422299202,1778799046000,-396.0,0.00031567,30]
[422299193,1778799046000,-301.0,0.00031559,30]
[422299201,1778799046000,-4071.0,0.00031567,30]
[422299197,1778799046000,-631.0,0.00031567,30]
[422299200,1778799046000,-3121.0,0.00031567,30]
[422299215,1778799046000,-2458.5,0.0003221,5]
[422299203,1778799046000,-163.0,0.00031678,3]
[422299208,1778799046000,-500.0,0.00031973,23]
[422299178,1778799046000,-374.0,0.000312,3]
[422299207,1778799046000,-3285.25395211,0.00031963,30]
[422299194,1778799046000,-428.0,0.00031559,30]
[422299180,1778799046000,-215.87760526,0.00031257,5]
[422299174,1778799046000,-500.0,0.00031136,120]
[422299185,1778799046000,-3000.0,0.00031343,30]
[422299216,1778799046000,-366.82991459,0.00032222,30]
[422299163,1778799046000,-150.0,0.00031081,2]
[422299157,1778799046000,-219.86705449,0.0003065,2]
[422299158,1778799046000,-219.86705449,0.0003065,2]
[422299161,1778799046000,-500.0,0.00031042,21]
[422299165,1778799046000,-2810.45,0.000311,7]
[422299160,1778799046000,-163.0,0.00031038,3]
[422299162,1778799046000,-3015.95395212,0.0003105,30]
[422299159,1778799046000,-1806.76978662,0.00030778,2]
[422299164,1778799046000,-200.0,0.00031096,2]
[422299166,1778799046000,-1000.0,0.00031119,2]
[422299177,1778799046000,-970.69,0.000312,7]
[422299172,1778799046000,-1000.0,0.0003113,2]
[422299168,1778799046000,-1000.0,0.00031119,2]
[422299169,1778799046000,-1000.0,0.00031119,2]
[422299171,1778799046000,-1000.0,0.0003113,2]
[422299170,1778799046000,-1000.0,0.00031119,2]
[422299167,1778799046000,-1000.0,0.00031119,2]
[422299175,1778799046000,-930.0,0.00031136,120]
[422299173,1778799046000,-1847.41533141,0.0003113,2]
[422299176,1778799046000,-623.0,0.00031137,9]
[422299179,1778799046000,-193.9184035,0.00031257,5]
[422299189,1778799046000,-165.78,0.00031559,7]
[422299188,1778799046000,-1000.0,0.000315,7]
[422299204,1778799046000,-623.0,0.00031699,9]
[422299226,1778799046000,-152.0,0.00032504,4]
[422299206,1778799046000,-171.95920175,0.00031882,5]
[422299240,1778799046000,-2810.45,0.000326,7]
[422299241,1778799046000,-150.0,0.00032636,2]
[422299239,1778799046000,-396.0,0.00032567,30]
[422299242,1778799046000,-633.0,0.00032665,2]
[422299243,1778799046000,-11475.68,0.000327,2]
[422299249,1778799046000,-3542.0,0.00032765,2]
[422299244,1778799046000,-3825.23,0.000327,2]
[422299245,1778799046000,-415.36,0.000327,6]
[422299247,1778799046000,-625.0,0.00032765,2]
[422299246,1778799046000,-1354.0,0.00032765,2]
[422299205,1778799046000,-158.0,0.00031736,3]
[422299250,1778799046000,-1270.0,0.00032765,2]
[422299260,1778799046000,-401.80788725,0.00032877,120]
[422299251,1778799046000,-930.0,0.00032765,2]
[422299254,1778799046000,-3746.0,0.00032877,2]
[422299261,1778799046000,-1000.0,0.00032877,120]
[422299259,1778799046000,-749.99,0.00032877,2]
[422299252,1778799046000,-3630.0,0.00032765,2]
[422299253,1778799046000,-623.0,0.00032822,10]
[422299255,1778799046000,-423.0,0.00032877,2]
[422299256,1778799046000,-283.0,0.00032877,2]
[422299257,1778799046000,-1001.84,0.00032877,2]
[422299258,1778799046000,-349.95,0.00032877,2]
[422299238,1778799046000,-4071.0,0.00032567,30]
[422299237,1778799046000,-3121.0,0.00032567,30]
[422299248,1778799046000,-926.0,0.00032765,2]
[422299235,1778799046000,-239.0,0.00032567,30]
[422299234,1778799046000,-631.0,0.00032567,30]
[422299214,1778799046000,-150.0,0.00032204,2]
[422299211,1778799046000,-214.95940296,0.00032,30]
[422299213,1778799046000,-5530.0,0.000322,5]
[422299212,1778799046000,-200.0,0.00032055,2]
[422299210,1778799046000,-700.0,0.00032,2]
[422299209,1778799046000,-163.0,0.00031998,3]
[422299219,1778799046000,-1817.69,0.000323,14]
[422299227,1778799046000,-152.141,0.00032506,120]
[422299220,1778799046000,-2209.03,0.000323,7]
[422299218,1778799046000,-623.0,0.0003226,10]
[422299221,1778799046000,-499.0,0.0003233,2]
[422299217,1778799046000,-500.0,0.00032252,120]
[422299223,1778799046000,-500.0,0.00032432,10]
[422299225,1778799046000,-255.99828244,0.00032467,2]
[422299224,1778799046000,-521.36303419,0.00032432,10]
[422299222,1778799046000,-204.83681135,0.0003234,10]
[422299228,1778799046000,-286.0,0.00032559,30]
[422299230,1778799046000,-476.0,0.00032559,30]
[422299231,1778799046000,-301.0,0.00032559,30]
[422299232,1778799046000,-428.0,0.00032559,30]
[422299229,1778799046000,-906.0,0.00032559,30]
[422299236,1778799046000,-469.0,0.00032567,30]
[422299233,1778799046000,-1953.0,0.00032559,30]
[422299302,1778799047000,-1953.0,0.00033559,30]
[422299306,1778799047000,-239.0,0.00033567,30]
[422299297,1778799047000,-906.0,0.00033559,30]
[422299300,1778799047000,-428.0,0.00033559,30]
[422299299,1778799047000,-301.0,0.00033559,30]
[422299293,1778799047000,-153.0,0.00033456,2]
[422299291,1778799047000,-623.0,0.00033384,11]
[422299294,1778799047000,-41023.0,0.00033488,30]
[422299289,1778799047000,-970.69,0.000332,7]
[422299304,1778799047000,-631.0,0.00033567,30]
[422299298,1778799047000,-476.0,0.00033559,30]
[422299309,1778799047000,-4071.0,0.00033567,30]
[422299314,1778799047000,-41023.0,0.00033781,30]
[422299310,1778799047000,-396.0,0.00033567,30]
[422299307,1778799047000,-469.0,0.00033567,30]
[422299311,1778799047000,-41023.0,0.00033586,30]
[422299312,1778799047000,-41023.0,0.00033683,30]
[422299320,1778799047000,-208.3309892,0.00034,30]
[422299313,1778799047000,-2810.45,0.000337,30]
[422299315,1778799047000,-41023.0,0.00033879,30]
[422299316,1778799047000,-623.0,0.00033945,11]
[422299318,1778799047000,-41023.0,0.00033976,30]
[422299319,1778799047000,-295.72303901,0.00033978,60]
[422299317,1778799047000,-350.0,0.00033973,80]
[422299322,1778799047000,-41023.0,0.00034074,30]
[422299287,1778799047000,-41023.0,0.00033098,30]
[422299308,1778799047000,-3121.0,0.00033567,30]
[422299290,1778799047000,-41023.0,0.00033293,30]
[422299321,1778799047000,-750.0,0.00034,2]
[422299288,1778799047000,-41023.0,0.00033195,30]
[422299263,1778799047000,-500.0,0.00032877,30]
[422299271,1778799047000,-500.0,0.00032877,2]
[422299269,1778799047000,-414.01791719,0.00032877,2]
[422299270,1778799047000,-437.78,0.00032877,30]
[422299272,1778799047000,-500.0,0.00032877,2]
[422299262,1778799047000,-500.0,0.00032877,30]
[422299264,1778799047000,-500.0,0.00032877,30]
[422299265,1778799047000,-517.0,0.00032877,30]
[422299266,1778799047000,-406.22,0.00032877,30]
[422299267,1778799047000,-500.0,0.00032877,2]
[422299268,1778799047000,-500.0,0.00032877,2]
[422299273,1778799047000,-500.0,0.00032877,2]
[422299292,1778799047000,-41023.0,0.00033391,30]
[422299281,1778799047000,-500.0,0.00032933,25]
[422299275,1778799047000,-1112.9877347,0.00032877,60]
[422299279,1778799047000,-250.0,0.00032907,7]
[422299276,1778799047000,-3554.55380993,0.00032877,30]
[422299274,1778799047000,-500.0,0.00032877,2]
[422299284,1778799047000,-395.68,0.00033014,5]
[422299283,1778799047000,-728.0,0.0003299,2]
[422299280,1778799047000,-250.0,0.00032907,7]
[422299278,1778799047000,-156.39,0.000329,120]
[422299282,1778799047000,-2686.98398688,0.00032984,7]
[422299286,1778799047000,-179.3,0.00033092,4]
[422299296,1778799047000,-286.0,0.00033559,30]
[422299295,1778799047000,-41023.0,0.00033537,30]
[422299277,1778799047000,-327.52,0.000329,120]
[422299324,1778799047000,-1817.69,0.000341,14]
[422299285,1778799047000,-179.3,0.00033092,4]
[422299334,1778799047000,-41023.0,0.00034465,30]
[422299354,1778799047000,-175.0,0.00034493,30]
[422299357,1778799047000,-175.0,0.00034493,30]
[422299356,1778799047000,-175.0,0.00034493,30]
[422299359,1778799047000,-175.0,0.00034493,30]
[422299358,1778799047000,-175.0,0.00034493,30]
[422299363,1778799047000,-175.0,0.00034493,30]
[422299364,1778799047000,-175.0,0.00034493,30]
[422299366,1778799047000,-175.0,0.00034493,30]
[422299362,1778799047000,-175.0,0.00034493,30]
[422299365,1778799047000,-175.0,0.00034493,30]
[422299368,1778799047000,-175.0,0.00034493,30]